bitfinex/quotes_SOLUSD_20220306
["timestamp","ask_amount","ask_price","bid_price","bid_amount"]
[1646600243808,12.22754267,85.654,85.61,17.528]
[1646600244209,6.38954267,85.653,85.61,17.528]
[1646600244409,5.838,85.655,85.61,17.528]
[1646600249838,23.1404,85.656,85.61,17.528]
[1646600253144,5.838,85.655,85.61,17.528]
[1646600266156,23.1404,85.656,85.61,17.528]
[1646600269258,5.838,85.655,85.61,17.528]
[1646600274063,5.838,85.665,85.611,117.44234844]
[1646600274264,5.838,85.673,85.62,17.5196]
[1646600274465,3.18753408,85.675,85.62,17.5196]
[1646600274662,3.18753408,85.677,85.62,17.5196]
[1646600274863,3.18753408,85.677,85.621,80.70472237]
[1646600275263,3.18753408,85.679,85.621,80.70472237]
[1646600275464,3.18753408,85.678,85.621,80.70472237]
[1646600275663,3.18753408,85.679,85.621,80.70472237]
[1646600276064,3.18753408,85.68,85.621,80.70472237]
[1646600276370,3.18753408,85.68,85.63,17.5221]
[1646600276967,9.57490697,85.684,85.63,17.5221]
[1646600277167,6.38737289,85.684,85.631,23.737]
[1646600277369,6.38737289,85.684,85.64,17.5223]
[1646600277572,5.836,85.683,85.641,49.28013755]
[1646600277967,6.38737289,85.682,85.641,49.28013755]
[1646600278269,5.836,85.681,85.641,49.28013755]
[1646600278667,6.38737289,85.68,85.641,49.28013755]
[1646600278970,5.836,85.679,85.641,49.28013755]
[1646600279169,6.38737289,85.678,85.641,49.28013755]
[1646600279369,5.837,85.677,85.641,49.28013755]
[1646600279570,6.38737289,85.676,85.641,49.28013755]
[1646600279771,5.8626886,85.681,85.641,49.28013755]
[1646600279971,5.8626886,85.681,85.556,3.19006141]
[1646600279972,3.18753408,85.677,85.6,16.87]
[1646600280173,5.838,85.676,85.59,58.4216]
[1646600280372,3.18753408,85.672,85.59,58.4216]
[1646600280572,5.838,85.671,85.59,58.4216]
[1646600280773,6.38737289,85.671,85.59,58.4216]
[1646600281073,17.5284,85.66,85.61,17.5282]
[1646600281288,51.84172521,85.668,85.604,63.95270038]
[1646600281289,12.22537289,85.659,85.604,63.95270038]
[1646600281494,6.38737289,85.658,85.604,63.95270038]
[1646600281789,5.839,85.657,85.604,63.95270038]
[1646600281988,6.38737289,85.656,85.604,63.95270038]
[1646600282189,12.66744504,85.649,85.604,63.95270038]
[1646600282389,5.839,85.648,85.604,63.95270038]
[1646600283390,5.839,85.648,85.576,117.3]
[1646600284093,17.5312,85.64,85.6,17.5304]
[1646600284393,5.839,85.639,85.6,17.5304]
[1646600284991,5.839,85.639,85.592,23.4099]
[1646600284992,14.279,85.639,85.571,117.3]
[1646600285191,14.279,85.639,85.551,117.3]
[1646600285391,3.18753408,85.635,85.562,23.4099]
[1646600285790,17.5333,85.63,85.57,17.5359]
[1646600285992,12.23234963,85.629,85.57,17.5359]
[1646600286191,6.39134963,85.628,85.57,17.5359]
[1646600286392,5.841,85.627,85.57,17.5359]
[1646600287393,5.841,85.629,85.57,17.5359]
[1646600288693,17.5333,85.63,85.57,17.5359]
[1646600290296,26.71061047,85.629,85.563,58.83333958]
[1646600290495,17.5422,85.61,85.562,23.4099]
[1646600290695,0.52497535,85.609,85.562,23.4099]
[1646600290894,0.52497535,85.607,85.562,23.4099]
[1646600291094,0.52497535,85.605,85.562,23.4099]
[1646600291296,5.841,85.606,85.562,23.4099]
[1646600291495,5.841,85.609,85.562,23.4099]
[1646600291699,12.66744504,85.608,85.563,57.76988892]
[1646600291894,5.841,85.607,85.563,57.76988892]
[1646600293095,5.841,85.607,85.551,22.8129]
[1646600293296,0.43029864,85.599,85.52,17.5468]
[1646600293496,0.48007035,85.597,85.52,17.5468]
[1646600293699,0.49213247,85.595,85.52,17.5468]
[1646600294098,0.49213247,85.593,85.521,58.96097142]
[1646600294302,0.49213247,85.591,85.53,17.5439]
[1646600294499,5.843,85.59,85.53,17.5439]
[1646600294698,5.843,85.593,85.53,17.5439]
[1646600295399,5.843,85.593,85.531,23.1177]
[1646600301209,24.1481,85.594,85.531,23.1177]
[1646600303105,24.1481,85.594,85.54,17.5426]
[1646600304906,5.843,85.593,85.54,17.5426]
[1646600305907,24.1481,85.594,85.54,17.5426]
[1646600306509,57.6661506,85.593,85.531,23.1177]
[1646600307512,24.1481,85.594,85.531,23.1177]
[1646600309312,5.843,85.593,85.531,23.1177]
[1646600311116,5.843,85.593,85.54,17.5425]
[1646600312516,5.843,85.593,85.541,24.6518]
[1646600312914,5.843,85.593,85.55,17.54]
[1646600313121,5.843,85.608,85.55,17.54]
[1646600313314,26.38790058,85.624,85.55,17.54]
[1646600313315,5.841,85.615,85.551,64.69100524]
[1646600313516,5.841,85.623,85.552,117.3]
[1646600313716,5.841,85.638,85.552,117.3]
[1646600313917,5.841,85.638,85.57,17.5309]
[1646600314116,26.38790058,85.657,85.571,117.3]
[1646600314117,5.84,85.646,85.571,117.3]
[1646600314317,5.84,85.648,85.571,117.3]
[1646600314517,46.52478536,85.653,85.58,58.4302]
[1646600314717,46.52478536,85.653,85.581,62.35027669]
[1646600314920,6.39010076,85.652,85.581,62.35027669]
[1646600315319,6.39010076,85.652,85.582,24.5898]
[1646600315819,5.839,85.651,85.582,24.5898]
[1646600316017,5.839,85.656,85.582,24.5898]
[1646600316218,5.839,85.656,85.59,17.5291]
[1646600316519,64.34879204,85.655,85.59,17.5291]
[1646600316818,5.839,85.654,85.59,17.5291]
[1646600318319,5.839,85.656,85.59,17.5291]
[1646600322642,32.22690058,85.656,85.59,17.5291]
[1646600325443,29.72690058,85.656,85.59,17.5291]
[1646600325645,29.72690058,85.656,85.591,2.5]
[1646600325843,29.72690058,85.656,85.6,17.5289]
[1646600329344,3.339,85.656,85.6,17.5289]
[1646600329546,3.339,85.656,85.601,0.14523231]
[1646600329743,3.339,85.656,85.61,17.524]
[1646600329944,3.339,85.656,85.611,52.81606752]
[1646600330755,3.339,85.656,85.62,17.5242]
[1646600331160,3.339,85.656,85.62,26.8642]
[1646600331364,26.38790058,85.686,85.62,26.8642]
[1646600331560,17.7414,85.706,85.62,26.8642]
[1646600331855,26.38790058,85.698,85.62,26.8642]
[1646600332260,26.38790058,85.698,85.621,23.3583]
[1646600332457,26.38790058,85.698,85.64,17.5214]
[1646600332657,26.38790058,85.698,85.641,57.92268164]
[1646600333761,3.39,85.697,85.642,24.0885]
[1646600334160,26.38790058,85.696,85.642,24.0885]
[1646600334360,3.391,85.695,85.642,24.0885]
[1646600334561,26.38790058,85.696,85.642,24.0885]
[1646600334760,26.38790058,85.694,85.642,24.0885]
[1646600335865,3.386,85.693,85.642,24.0885]
[1646600336265,26.38790058,85.692,85.642,24.0885]
[1646600337568,3.374,85.691,85.642,24.0885]
[1646600337769,3.374,85.691,85.65,17.5201]
[1646600337968,29.76190058,85.691,85.65,17.5201]
[1646600340669,29.76190058,85.691,85.642,24.0885]
[1646600340869,26.38790058,85.691,85.642,29.9245]
[1646600341070,3.362,85.69,85.642,29.9245]
[1646600341292,1.58604755,85.68,85.642,29.9245]
[1646600341769,1.58604755,85.679,85.642,29.9245]
[1646600342670,1.58604755,85.669,85.642,29.9245]
[1646600344176,1.58604755,85.668,85.642,29.9245]
[1646600344573,1.58604755,85.669,85.642,29.9245]
[1646600345674,1.58604755,85.668,85.642,29.9245]
[1646600347877,1.58604755,85.667,85.642,29.9245]
[1646600348079,1.58604755,85.667,85.642,24.0885]
[1646600348901,1.58604755,85.669,85.642,24.0885]
[1646600349105,1.58604755,85.668,85.642,24.0885]
[1646600350706,1.58604755,85.667,85.642,24.0885]
[1646600353108,1.58604755,85.669,85.642,24.0885]
[1646600353508,1.58604755,85.662,85.642,24.0885]
[1646600354109,1.58604755,85.661,85.642,24.0885]
[1646600354809,1.58604755,85.663,85.642,24.0885]
[1646600355813,1.58604755,85.66,85.642,24.0885]
[1646600356011,1.58604755,85.661,85.642,24.0885]
[1646600356310,1.58604755,85.66,85.642,24.0885]
[1646600356510,48.04465867,85.679,85.642,24.0885]
[1646600356511,1.58604755,85.659,85.642,24.0885]
[1646600357713,1.58604755,85.652,85.642,24.0885]
[1646600358915,1.58604755,85.653,85.642,24.0885]
[1646600359716,0.00604755,85.653,85.642,24.0885]
[1646600359915,113.4,85.71,85.642,24.0885]
[1646600359916,3.18753408,85.678,85.65,17.5146]
[1646600360116,3.18753408,85.691,85.65,17.5146]
[1646600360316,3.18753408,85.691,85.65,23.3506]
[1646600360716,3.18753408,85.694,85.65,23.3506]
[1646600360919,3.18753408,85.694,85.66,17.5181]
[1646600361718,3.18753408,85.693,85.66,17.5181]
[1646600362819,3.18753408,85.697,85.66,17.5181]
[1646600363019,6.38601127,85.692,85.66,17.5181]
[1646600363219,3.18753408,85.697,85.66,17.5181]
[1646600364623,3.18753408,85.698,85.66,17.5181]
[1646600365022,3.18753408,85.685,85.66,17.5181]
[1646600365622,3.18753408,85.687,85.66,17.5181]
[1646600365822,6.38601127,85.684,85.66,17.5181]
[1646600366023,3.18753408,85.687,85.66,17.5181]
[1646600367130,3.18753408,85.686,85.66,17.5181]
[1646600368829,3.18753408,85.687,85.66,17.5181]
[1646600369430,3.18753408,85.686,85.66,17.5181]
[1646600369635,3.18753408,85.686,85.654,5.835]
[1646600369835,3.18753408,85.683,85.653,24.6034]
[1646600370031,3.18753408,85.68,85.653,24.6034]
[1646600371037,3.18753408,85.679,85.653,24.6034]
[1646600371232,3.18753408,85.678,85.653,24.6034]
[1646600371732,3.18753408,85.677,85.653,24.6034]
[1646600373533,3.38,85.676,85.653,24.6034]
[1646600373833,6.38601127,85.675,85.653,24.6034]
[1646600375249,3.18753408,85.676,85.653,24.6034]
[1646600375651,3.379,85.675,85.653,24.6034]
[1646600376051,6.38601127,85.674,85.653,24.6034]
[1646600377553,3.18753408,85.675,85.653,24.6034]
[1646600378156,3.18753408,85.676,85.653,24.6034]
[1646600378455,3.18753408,85.675,85.653,24.6034]
[1646600378655,9.57354535,85.675,85.653,24.6034]
[1646600378857,3.18753408,85.675,85.653,24.6034]
[1646600380855,3.18753408,85.675,85.654,54.74815579]
[1646600381155,6.38601127,85.674,85.654,54.74815579]
[1646600381358,60.69413772,104.15,85.654,54.74815579]
[1646600381359,3.18753408,85.684,85.654,54.74815579]
[1646600381556,3.18753408,85.688,85.654,54.74815579]
[1646600381756,3.18753408,85.692,85.654,54.74815579]
[1646600381958,3.18753408,85.694,85.654,54.74815579]
[1646600382157,3.18753408,85.694,85.66,17.5181]
[1646600382557,6.38601127,85.693,85.66,17.5181]
[1646600382959,3.18753408,85.695,85.66,17.5181]
[1646600383158,6.38601127,85.692,85.66,17.5181]
[1646600383360,3.18753408,85.695,85.66,17.5181]
[1646600383559,3.18753408,85.696,85.66,17.5181]
[1646600384459,3.18753408,85.698,85.66,17.5181]
[1646600385360,3.18753408,85.699,85.66,17.5181]
[1646600385961,3.18753408,85.702,85.66,17.5181]
[1646600386661,3.18753408,85.701,85.66,17.5181]
[1646600387361,9.57354535,85.7,85.66,17.5181]
[1646600387563,6.38601127,85.699,85.66,17.5181]
[1646600387961,3.18753408,85.701,85.66,17.5181]
[1646600388162,6.38601127,85.698,85.66,17.5181]
[1646600388361,3.18753408,85.7,85.66,17.5181]
[1646600389464,3.18753408,85.699,85.66,17.5181]
[1646600390766,3.18753408,85.7,85.66,17.5181]
[1646600392669,3.18753408,85.701,85.66,17.5181]
[1646600393271,3.18753408,85.7,85.66,17.5181]
[1646600393471,3.18753408,85.701,85.66,17.5181]
[1646600400778,0.00753408,85.713,85.661,117.3]
[1646600400978,479.76940786,85.77,85.654,54.74815579]
[1646600400979,16.13472064,85.728,85.681,117.3]
[1646600401184,11.41586111,85.767,85.691,117.3]
[1646600401376,11.41586111,85.769,85.692,0.21113778]
[1646600401579,11.41586111,85.769,85.693,120.684]
[1646600401777,50.96831221,85.781,85.693,159.81101538]
[1646600401976,11.41586111,85.78,85.693,199.29469846]
[1646600402177,11.41586111,85.78,85.71,17.4968]
[1646600402375,11.41586111,85.78,85.711,27.5685]
[1646600402577,11.41586111,85.78,85.711,38.03902192]
[1646600402778,50.96831221,85.781,85.711,27.5685]
[1646600402977,50.96831221,85.781,85.711,24.1855]
[1646600403975,49.96831221,85.781,85.711,24.1855]
[1646600404176,17.5044,85.78,85.72,17.5049]
[1646600404776,17.5044,85.78,85.721,24.1855]
[1646600406280,17.5044,85.78,85.73,17.5033]
[1646600406478,17.5044,85.78,85.731,23.3939]
[1646600408982,17.5044,85.78,85.7,16.87]
[1646600409178,17.5075,85.76,85.701,24.4112]
[1646600409478,25.8575,85.76,85.701,24.4112]
[1646600409877,13.54085804,85.759,85.701,24.4112]
[1646600410080,13.54085804,85.759,85.71,17.5072]
[1646600411384,17.5085,85.75,85.701,24.4112]
[1646600413182,117.3,85.749,85.664,3.383]
[1646600413380,17.5145,85.73,85.665,24.878]
[1646600413584,24.0245,85.73,85.665,24.878]
[1646600413984,49.96831221,85.729,85.665,24.878]
[1646600414384,17.5173,85.71,85.665,24.878]
[1646600414584,13.54085804,85.709,85.665,24.878]
[1646600415384,13.54085804,85.709,85.67,17.5161]
[1646600415884,13.54085804,85.709,85.665,24.878]
[1646600417005,21.11085804,85.709,85.665,24.878]
[1646600417205,21.11085804,85.709,85.649,22.9791]
[1646600417206,17.5193,85.7,85.66,17.5174]
[1646600417405,17.5193,85.7,85.649,22.9791]
[1646600418407,17.5193,85.7,85.636,23.5643]
[1646600418606,0.28724906,85.699,85.636,23.5643]
[1646600418806,17.5226,85.69,85.636,23.5643]
[1646600419107,24.3926,85.69,85.636,23.5643]
[1646600419312,47.68601366,85.689,85.64,17.5221]
[1646600419508,47.68601366,85.689,85.618,23.8208]
[1646600419907,117.58465952,85.688,85.618,23.8208]
[1646600420108,117.58465952,85.688,85.603,22.9993]
[1646600420109,0.28465952,85.679,85.603,22.9993]
[1646600420308,2.73173863,85.687,85.603,22.9993]
[1646600420508,58.4277,85.68,85.603,22.9993]
[1646600421108,15.82315659,85.669,85.603,22.9993]
[1646600422212,15.82315659,85.669,85.61,17.5275]
[1646600425519,17.9075,85.691,85.61,17.5275]
[1646600426613,50.64808153,85.69,85.61,17.5275]
[1646600427018,50.64808153,85.69,85.611,117.3]
[1646600427217,50.64808153,85.69,85.61,17.5275]
[1646600427717,50.64808153,85.69,85.63,17.5223]
[1646600427916,50.64808153,85.69,85.631,49.12920598]
[1646600429215,50.64808153,85.69,85.64,17.5212]
[1646600431219,50.64808153,85.69,85.63,17.5232]
[1646600431617,50.64808153,85.69,85.621,24.9459]
[1646600433517,50.64808153,85.69,85.63,17.5239]
[1646600440124,50.64808153,85.69,85.631,23.5962]
[1646600446728,50.64808153,85.69,85.641,53.81314681]
[1646600447128,24.7053,85.699,85.641,53.81314681]
[1646600447528,24.7053,85.699,85.642,24.095]
[1646600447728,24.7053,85.699,85.65,17.5199]
[1646600447928,17.0674,85.728,85.65,17.5199]
[1646600448132,69.16105102,85.727,85.65,17.5199]
[1646600449433,24.6182,85.727,85.67,17.5122]
[1646600449629,24.5755,85.743,85.67,17.5122]
[1646600450331,44.536454,85.747,85.671,181.74637934]
[1646600450534,44.536454,85.747,85.69,17.5098]
[1646600450834,23.132,85.765,85.691,74.50856896]
[1646600451031,34.05163691,85.765,85.691,81.65856896]
[1646600451230,10.91963691,85.77,85.691,81.65856896]
[1646600451432,10.91963691,85.772,85.692,117.3]
[1646600451631,24.1108,85.773,85.693,22.9243]
[1646600451831,24.1108,85.773,85.7,17.5094]
[1646600452032,61.56037228,85.77,85.7,17.5094]
[1646600452230,61.56037228,85.77,85.701,22.8163]
[1646600452832,61.56037228,85.77,85.71,17.5072]
[1646600453032,61.56037228,85.77,85.711,24.02]
[1646600456934,79.06737228,85.77,85.711,24.02]
[1646600457736,81.79908345,85.77,85.711,24.02]
[1646600459139,79.06737228,85.77,85.711,24.02]
[1646600459840,61.56037228,85.77,85.711,82.13231876]
[1646600460239,61.56037228,85.77,85.72,17.5056]
[1646600464143,17.5026,85.79,85.72,17.5056]
[1646600464344,23.6287,85.803,85.74,17.5004]
[1646600464544,23.6287,85.803,85.741,24.2937]
[1646600464946,24.0202,85.819,85.741,24.2937]
[1646600465165,51.07632059,85.818,85.742,49.62426251]
[1646600465564,51.07632059,85.818,85.75,17.4992]
[1646600465764,51.07632059,85.818,85.751,24.0607]
[1646600465965,51.07632059,85.818,85.752,5.828]
[1646600466368,23.2336,85.838,85.752,123.128]
[1646600466565,23.2336,85.838,85.754,117.3]
[1646600466766,23.2336,85.838,85.77,17.4923]
[1646600466966,23.2336,85.838,85.771,24.0607]
[1646600467569,17.4934,85.83,85.772,63.63527678]
[1646600468667,17.4934,85.83,85.773,5.827]
[1646600469067,17.4934,85.83,85.772,5.827]
[1646600469268,17.4934,85.83,85.771,24.0607]
[1646600469669,17.4934,85.83,85.772,5.827]
[1646600472274,17.4934,85.83,85.771,24.0607]
[1646600472975,17.4934,85.83,85.78,17.4922]
[1646600473176,17.4934,85.83,85.781,24.0237]
[1646600474379,17.4934,85.83,85.782,5.827]
[1646600476385,17.4934,85.83,85.781,29.8507]
[1646600476985,17.4934,85.83,85.781,24.0237]
[1646600479985,1.58254771,85.796,85.781,24.0237]
[1646600480786,1.58254771,85.797,85.781,24.0237]
[1646600481791,0.69865125,85.782,85.781,24.0237]
[1646600482388,0.69865125,85.782,85.771,5.828]
[1646600485693,0.69865125,85.782,85.761,24.6142]
[1646600487993,1.58254771,85.781,85.761,24.6142]
[1646600488193,1.58254771,85.78,85.761,24.6142]
[1646600488592,1.58254771,85.779,85.761,24.6142]
[1646600488793,1.58254771,85.78,85.761,24.6142]
[1646600489593,1.58254771,85.779,85.761,24.6142]
[1646600489992,1.58254771,85.775,85.761,24.6142]
[1646600490196,1.58254771,85.775,85.76,17.4951]
[1646600490395,0.69865125,85.782,85.76,17.4951]
[1646600490396,1.58254771,85.774,85.76,17.4951]
[1646600491298,0.69865125,85.782,85.76,17.4951]
[1646600492295,0.69865125,85.782,85.761,57.41477357]
[1646600492496,0.69865125,85.782,85.77,17.4951]
[1646600493396,0.69865125,85.782,85.771,24.861]
[1646600495700,3.17524154,85.797,85.771,24.861]
[1646600495900,3.17524154,85.797,85.78,17.4914]
[1646600496101,3.17524154,85.806,85.78,17.4914]
[1646600496300,3.17524154,85.807,85.78,17.4914]
[1646600496500,3.17524154,85.807,85.781,24.9414]
[1646600496700,3.17524154,85.807,85.781,85.03394487]
[1646600497602,3.17524154,85.808,85.781,85.03394487]
[1646600497803,3.17524154,85.81,85.781,85.03394487]
[1646600498103,3.17524154,85.81,85.79,17.4906]
[1646600500009,3.17524154,85.811,85.79,17.4906]
[1646600500210,3.17524154,85.812,85.79,17.4906]
[1646600500412,3.17524154,85.811,85.79,17.4906]
[1646600500712,3.17524154,85.812,85.79,17.4906]
[1646600500910,3.17524154,85.813,85.79,17.4906]
[1646600501109,3.17524154,85.812,85.79,17.4906]
[1646600501508,3.17524154,85.815,85.79,17.4906]
[1646600501713,9.15426342,85.813,85.79,17.4906]
[1646600501910,6.37716337,85.812,85.79,17.4906]
[1646600505918,3.17524154,85.819,85.79,17.4906]
[1646600506119,6.3767482,85.818,85.79,17.4906]
[1646600506332,3.17524154,85.821,85.791,22.7736]
[1646600506534,3.17524154,85.822,85.791,22.7736]
[1646600506733,3.17524154,85.821,85.791,22.7736]
[1646600507636,3.17524154,85.822,85.791,22.7736]
[1646600508635,3.17524154,85.821,85.791,22.7736]
[1646600509638,3.17524154,85.822,85.791,22.7736]
[1646600511742,3.17524154,85.823,85.791,22.7736]
[1646600512747,6.3767482,85.824,85.791,22.7736]
[1646600512748,3.17524154,85.822,85.791,22.7736]
[1646600514445,3.17524154,85.822,85.782,5.827]
[1646600514645,3.17524154,85.82,85.782,5.827]
[1646600515448,3.17524154,85.819,85.782,5.827]
[1646600516149,9.55198974,85.82,85.782,5.827]
[1646600516348,3.17524154,85.82,85.782,5.827]
[1646600516548,3.17524154,85.819,85.782,5.827]
[1646600516749,3.17524154,85.819,85.79,17.4911]
[1646600517350,3.17524154,85.822,85.79,17.4911]
[1646600517550,3.17524154,85.825,85.791,23.2379]
[1646600517754,3.17524154,85.826,85.8,17.4894]
[1646600518551,6.3767482,85.832,85.8,17.4894]
[1646600518552,3.17524154,85.824,85.8,17.4894]
[1646600518850,3.17524154,85.825,85.8,17.4894]
[1646600519452,3.17524154,85.834,85.8,34.3594]
[1646600519651,3.17524154,85.84,85.81,17.484]
[1646600519851,3.17524154,85.844,85.81,17.484]
[1646600520052,61.23333696,85.841,85.801,23.7298]
[1646600520453,3.17524154,85.839,85.801,23.7298]
[1646600520653,9.55198974,85.838,85.81,17.4867]
[1646600521054,3.17524154,85.838,85.81,17.4867]
[1646600521362,61.23333696,85.841,85.81,17.4867]
[1646600521753,6.37487336,85.84,85.81,17.4867]
[1646600521954,61.23333696,85.841,85.81,17.4867]
[1646600522152,3.17524154,85.848,85.81,17.4867]
[1646600522354,0.1,85.849,85.81,17.4867]
[1646600522757,0.1,85.849,85.811,23.7128]
[1646600522954,0.1,85.849,85.82,17.4828]
[1646600524354,0.1,85.849,85.811,23.7128]
[1646600524355,0.1,85.849,85.83,17.4815]
[1646600525261,0.1,85.849,85.831,117.3]
[1646600525758,0.1,85.849,85.83,17.4815]
[1646600526159,0.1,85.849,85.831,5.824]
[1646600527261,0.1,85.849,85.83,17.4815]
[1646600527459,0.1,85.849,85.831,117.3]
[1646600527762,0.1,85.849,85.832,5.824]
[1646600528360,3.17524154,85.883,85.832,5.824]
[1646600528562,3.17524154,85.895,85.841,117.3]
[1646600528761,4.74176506,85.919,85.833,23.0618]
[1646600528762,3.17524154,85.902,85.842,23.0241]
[1646600528962,3.17524154,85.9,85.842,23.0241]
[1646600529162,3.17524154,85.897,85.843,5.822]
[1646600529461,45.27522153,85.896,85.843,5.822]
[1646600529662,5.8722453,85.895,85.843,5.822]
[1646600530061,5.8722453,85.895,85.842,23.0241]
[1646600530462,45.27522153,85.896,85.85,17.4765]
[1646600531665,45.27522153,85.896,85.844,5.822]
[1646600534308,48.45046307,85.896,85.8,16.87]
[1646600534508,117.3,85.889,85.8,16.87]
[1646600534709,3.17524154,85.884,85.792,24.9314]
[1646600534909,130.10480845,85.883,85.792,24.9314]
[1646600535207,18.31890143,85.883,85.792,24.9314]
[1646600535510,5.90695271,85.882,85.792,24.9314]
[1646600535707,5.823,85.881,85.792,24.9314]
[1646600535911,8.99824154,85.881,85.792,24.9314]
[1646600536331,5.90695271,85.88,85.792,24.9314]
[1646600536609,5.825,85.879,85.792,24.9314]
[1646600536808,8.55671117,85.879,85.792,24.9314]
[1646600537008,3.17524154,85.875,85.792,24.9314]
[1646600537208,45.27522153,85.869,85.8,17.4866]
[1646600537408,5.822,85.868,85.792,24.9314]
[1646600537607,5.822,85.868,85.786,24.2751]
[1646600537608,123.122,85.868,85.786,24.2751]
[1646600537810,0.47012426,85.867,85.76,16.87]
[1646600538012,3.17524154,85.863,85.751,117.3]
[1646600538211,0.58557711,85.849,85.76,34.3639]
[1646600538408,17.4893,85.85,85.761,24.5292]
[1646600538610,18.23294872,85.849,85.762,52.60021065]
[1646600539008,18.23294872,85.849,85.763,117.3]
[1646600539609,18.23294872,85.849,85.765,117.3]
[1646600540310,17.4919,85.84,85.77,17.4919]
[1646600540513,5.82,85.839,85.77,17.4919]
[1646600543211,5.82,85.839,85.78,17.4893]
[1646600543412,5.82,85.839,85.78,67.12289146]
[1646600543613,5.82,85.839,85.78,17.4893]
[1646600545617,5.817,85.848,85.781,117.3]
[1646600545813,5.817,85.848,85.791,46.17588997]
[1646600546013,12.41194872,85.849,85.791,46.17588997]
[1646600547413,12.41194872,85.849,85.8,17.4867]
[1646600547619,5.809,85.848,85.8,17.4867]
[1646600547814,5.809,85.848,85.792,23.8191]
[1646600548814,5.809,85.848,85.793,117.3]
[1646600549215,12.41194872,85.849,85.795,117.3]
[1646600549415,12.41194872,85.849,85.794,56.11825772]
[1646600549614,12.41194872,85.849,85.795,117.3]
[1646600549816,12.41194872,85.849,85.8,17.4867]
[1646600552847,12.41194872,85.849,85.801,117.3]
[1646600553048,5.321,85.862,85.81,17.4848]
[1646600553453,5.322,85.863,85.81,17.4848]
[1646600553750,8.49724154,85.863,85.81,17.4848]
[1646600553951,5.322,85.863,85.81,17.4848]
[1646600554149,56.22964556,85.863,85.811,56.48066265]
[1646600554350,56.22964556,85.863,85.82,17.4827]
[1646600554550,5.324,85.87,85.82,17.4827]
[1646600554551,5.324,85.87,85.821,117.3]
[1646600554751,3.17524154,85.873,85.821,117.3]
[1646600554953,24.1411,85.909,85.818,6.52]
[1646600554954,3.17524154,85.883,85.831,117.3]
[1646600555250,3.17524154,85.894,85.84,17.4755]
[1646600555451,50.97484156,85.891,85.841,117.3]
[1646600556650,50.97484156,85.891,85.842,117.3]
[1646600556850,5.323,85.89,85.842,117.3]
[1646600557250,5.323,85.89,85.85,17.4756]
[1646600558953,5.323,85.89,85.839,24.237]
[1646600559152,50.97484156,85.891,85.839,24.237]
[1646600559350,7.88,85.89,85.839,24.237]
[1646600559551,11.05524154,85.89,85.839,24.237]
[1646600559752,11.05524154,85.89,85.84,117.3]
[1646600560054,7.88,85.89,85.84,134.7785]
[1646600560254,7.38,85.89,85.84,17.4785]
[1646600560453,50.97484156,85.891,85.84,17.4785]
[1646600561354,50.97484156,85.891,85.841,117.3]
[1646600561556,50.97484156,85.891,85.85,17.4749]
[1646600562656,5.317,85.905,85.86,17.4725]
[1646600563056,3.17524154,85.906,85.86,17.4725]
[1646600563254,3.17524154,85.906,85.849,24.2342]
[1646600563456,3.17524154,85.905,85.849,24.2342]
[1646600563856,3.17524154,85.905,85.85,17.4763]
[1646600564058,3.17524154,85.906,85.849,24.2342]
[1646600564460,17.4782,85.9,85.849,24.2342]
[1646600566264,5.328,85.904,85.85,17.4768]
[1646600567763,54.3373075,85.905,85.85,17.4768]
[1646600569063,5.325,85.904,85.85,17.4768]
[1646600575469,5.325,85.904,85.851,117.3]
[1646600575669,5.325,85.904,85.86,17.4745]
[1646600578069,3.17524154,85.903,85.86,17.4745]
[1646600578270,5.319,85.902,85.86,17.4745]
[1646600578470,3.17524154,85.903,85.86,17.4745]
[1646600579771,3.17524154,85.902,85.86,17.4745]
[1646600579971,3.17524154,85.9,85.86,17.4745]